Cogmind - Beta 11.1 @@@ ROGUE MODE // 2022.10.11 @ 20:25:23 Player: deadnoob Result: Destroyed by Y-45 Defender with Heavy Assault Rifle Performance ------------- Evolutions (2) 1000 Regions Visited (6) 1200 Robots Destroyed (101) 505 Value Destroyed (2779) 2779 Prototype IDs (5) 100 Alien Tech Used (0) 0 Bonus (33) 33 TOTAL SCORE: 5617 Bonus ------- High Alert Combat Kills 154 Follower Combat Kills 49 Friendly Fire -170 Cogmind --------- Core Integrity 0/550 Matter 230/300 Energy 273/275 System Corruption 1% Temperature Warm (164) Movement Treading (960) Ox10 Location -8/Storage Parts ------- > --- POWER (1) -------- Deuterium Engine > --- PROPULSION (3) --- Light Treads Wheel Compact Wheel > --- UTILITY (5) ------ Humpback Salvage Targeting Computer Improved Targeting Computer > --- WEAPON (2) ------- Heavy Assault Rifle Improved Assault Rifle > --- INVENTORY (35) --- Heavy Ion Engine Heavy Ion Engine Light Treads Light Treads Light Treads Light Treads Advanced Treads Improved Flight Unit Improved Flight Unit Improved VTOL Module Improved VTOL Module Improved VTOL Module Improved VTOL Module Advanced Heat Sink Small Storage Unit Medium Storage Unit Humpback Improved Signal Interpreter Transport Network Coupler Transmission Jammer Hardened Heavy Armor Plating Graphene Brace Shield Generator System Shield Tractor Beam Splice Drone Bay (6/6) Ion Cannon Light Assault Rifle Heavy Assault Cannon Rocket Launcher Rocket Launcher Improved Datajack Peak State ------------ > --- POWER ------------ Deuterium Engine > --- PROPULSION ------- Light Treads Light Treads Advanced Treads > --- UTILITY ---------- Humpback Salvage Targeting Computer Improved Targeting Computer Drone Bay > --- WEAPON ----------- Ion Cannon Improved Assault Rifle > --- INVENTORY -------- Heavy Ion Engine Heavy Ion Engine Light Treads Light Treads Aluminum Leg Compact Wheel Improved Flight Unit Improved VTOL Module Improved VTOL Module Improved VTOL Module Improved VTOL Module Advanced Heat Sink Small Storage Unit Medium Storage Unit High-capacity Storage Unit Humpback Improved Signal Interpreter Transport Network Coupler Transmission Jammer Light Armor Plating Hardened Heavy Armor Plating Graphene Brace Shield Generator System Shield Tractor Beam Splice Drone Bay Light Assault Rifle Heavy Assault Rifle Heavy Assault Cannon Rocket Launcher Rocket Launcher Improved Datajack [Rating: 34] Favorites ----------- Power Ion Engine Engine Ion Engine Power Core Light Nuclear Core Propulsion Light Treads Treads Light Treads Leg Aluminum Leg Wheel Compact Wheel Flight Unit Flight Unit Utility Salvage Targeting Computer Device Seismic Detector Storage High-capacity Storage Unit Processor Salvage Targeting Computer Protection Light Armor Plating Weapon Small Laser Energy Gun Small Laser Energy Cannon Ion Cannon Ballistic Gun Autogun Ballistic Cannon Heavy Assault Cannon Launcher Rocket Launcher Special Weapon Plasma Cutter Build | -11 -10 -10 -10 -9 -8 -8 ------- Run | Scr Mat Min Exi Min Mat Sto Slots Evolved 4 | . . . . . 4 . Power . | . . . . . . . Propulsion 1 | . . . . . 1 . Utility 3 | . . . . . 3 . Weapon . | . . . . . . . Parts Attached 95 | 1 7 3 2 3 45 34 Power 8 | . . 1 1 . 5 1 Engine 4 | . . 1 1 . 1 1 Core 4 | . . . . . 4 . Reactor . | . . . . . . . Propulsion 37 | . 2 . . 3 18 14 Treads 31 | . 2 . . 3 18 8 Leg . | . . . . . . . Wheel 2 | . . . . . . 2 Hover . | . . . . . . . Flight 4 | . . . . . . 4 Utility 21 | 1 3 2 1 . 10 4 Device 7 | 1 1 2 . . 2 1 Storage 3 | . 1 . 1 . . 1 Processor 4 | . . . . . 4 . Hackware . | . . . . . . . Protection 7 | . 1 . . . 4 2 Artifact . | . . . . . . . Weapon 29 | . 2 . . . 12 15 Energy Gun 5 | . 1 . . . 4 . Energy Cannon 2 | . . . . . . 2 Ballistic Gun 16 | . . . . . 6 10 Ballistic Cannon 1 | . . . . . 1 . Launcher 4 | . 1 . . . 1 2 Special Weapon 1 | . . . . . . 1 Impact Weapon . | . . . . . . . Slashing Weapon . | . . . . . . . Piercing Weapon . | . . . . . . . Special Melee Weapon . | . . . . . . . Unidentified Prototypes 3 | . . 1 . . . 2 Parts Lost 21 | . 1 . . . 14 6 Power 2 | . . . . . 2 . Propulsion 9 | . . . . . 6 3 Utility 5 | . 1 . . . 3 1 Weapon 5 | . . . . . 3 2 Highest Loss Streak 7 | . 1 . . . 7 3 To Critical Strikes . | . . . . . . . Average Slot Usage (%) 96 | . 98 99 100 100 94 89 Engine 8 | . 14 14 14 14 2 5 Core 2 | . . . . . 4 3 Treads 26 | . 26 28 28 28 26 24 Device 7 | . 8 13 14 14 1 . Storage 11 | . 14 14 14 14 9 8 Processor 12 | . . . . . 28 21 Protection 2 | . 4 . . . 5 5 Energy Gun 15 | . 27 28 28 28 2 . Energy Cannon 1 | . . . . . . 4 Ballistic Gun 5 | . . . . . 11 11 Naked Turns . | . . . . . . . Heaviest Build 224 | 13 18 23 48 48 61 224 Greatest Support 62 | 20 20 40 40 40 60 62 Greatest Overweight (x) 13 | . . . 1 1 1 13 Average Overweight (x) . | . . . . 1 . 2 Largest Inventory Capacity 35 | 8 10 10 20 20 20 35 Average Capacity 18 | 8 8 10 13 20 20 30 Most Carried 35 | 6 10 10 19 20 20 35 Average Carried 17 | 6 8 9 11 18 18 28 Final Capacity 35 | 8 10 10 20 20 20 35 Final Carried 35 | 6 10 10 19 19 20 35 Class Distribution -------------------- 57% | Mutant 25% | Scavenger-Mutant 16% | Hauler-Mutant Dominant Class ---------------- Mutant | -10/Materials Mutant | -10/Mines Mutant | -10/Exiles Mutant | -9/Mines Scavenger-Mutant | -8/Materials Hauler-Mutant | -8/Storage Resources | -11 -10 -10 -10 -9 -8 -8 ----------- Run | Scr Mat Min Exi Min Mat Sto Matter Collected 2557 | 200 76 39 60 50 1488 644 Remotely . | . . . . . . . Salvage Created 3908 | 104 191 168 . 84 2090 1271 Parts 222 | 7 20 8 . 5 117 65 Haulers Intercepted 8 | . 1 . . . 3 4 Recyclers Shooed 7 | . . 1 . . 3 3 Parts Field Recycled . | . . . . . . . Retrieved Matter . | . . . . . . . Parts Self-Destructed . | . . . . . . . Prevented . | . . . . . . . Kills | -11 -10 -10 -10 -9 -8 -8 ------- Run | Scr Mat Min Exi Min Mat Sto Combat Hostiles Destroyed 64 | . 9 1 . 2 33 19 Melee 1 | . . . . . 1 . Guns 42 | . 5 1 . 2 23 11 Cannons 10 | . . . . . 7 3 AOE 11 | . 4 . . . 2 5 Classes Destroyed 13 | 3 3 . . . 6 1 Worker 9 | 2 1 . . . 3 3 Builder 2 | . . . . . 2 . Tunneler 2 | 1 . 1 . . . . Hauler 8 | . 1 . . . 3 4 Recycler 10 | 1 . 2 . . 4 3 Operator 1 | . . . . . . 1 Watcher 4 | . . . . . 2 2 Swarmer 12 | . 6 1 . . 2 3 Grunt 37 | . 3 . . 2 20 12 Brawler 2 | . . . . . 1 1 Sentry 11 | . . . . . 8 3 Hunter 2 | . . . . . 2 . Heavy 1 | . . . . . 1 . Best Kill Streak 7 | 2 5 2 . 1 5 7 Combat Bots Only 5 | . 5 1 . 1 5 5 Max Kills in Single Turn 3 | 1 3 1 . 1 2 3 Gunslinging . | . . . . . . . Exploded 3 | . 3 . . . 1 3 Melee 1 | . . . . . 1 . Uniques/NPCs Destroyed . | . . . . . . . Combat | -11 -10 -10 -10 -9 -8 -8 -------- Run | Scr Mat Min Exi Min Mat Sto Damage Taken 5184 | . 196 . . 92 3476 1420 Core 634 | . 60 . . 15 338 221 Absorbed by Shields . | . . . . . . . Redirected to Shielding 76 | . . . . . 76 . Regen/Repaired (Parts) 220 | . . . . . 220 . Core Remaining (%) 85 | 100 . . . 70 . . Volleys Fired 302 | 9 20 5 . 13 169 86 Largest 2 | 2 2 2 . 2 2 2 Hottest 92 | 80 80 80 . 80 92 83 Shots Fired 545 | 18 38 10 . 26 299 154 Gun 459 | 18 36 10 . 26 260 109 Cannon 63 | . . . . . 36 27 Launcher 15 | . 2 . . . 3 10 Special 8 | . . . . . . 8 Kinetic 354 | . . . . . 245 109 Thermal 176 | 18 36 10 . 26 51 35 Explosive 15 | . 2 . . . 3 10 Electromagnetic . | . . . . . . . Robot Hit Streak 27 | 4 10 3 . 6 15 27 Robot Miss Streak 4 | 3 4 1 . 3 3 2 Penetration Max 1 | . . . . . 1 . Secondary Targets 4 | . . . . . 2 2 Max Gunslinging Chain 1 | . . . . . 1 1 Shots Hit Robots 388 | 9 24 7 . 14 219 115 Core Hits 172 | 5 17 5 . 5 83 57 Critical Kills . | . . . . . . . Critical Parts Destroyed 3 | . . . . . 2 1 Critical Strikes 9 | . . . . . 8 1 Burn 3 | . . . . . 3 . Destroy 3 | . . . . . 2 1 Blast 3 | . . . . . 3 . Melee Attacks . | . . . . . . . Impact . | . . . . . . . Slashing . | . . . . . . . Piercing . | . . . . . . . Sneak Attacks . | . . . . . . . Combat Hostiles . | . . . . . . . Follow-up Attacks . | . . . . . . . Damage Inflicted 8218 | 97 593 88 . 169 4856 2415 Guns 4701 | 97 264 78 . 161 2909 1192 Cannons 2007 | . . . . . 1634 373 Explosions 1345 | . 325 . . . 255 765 Melee . | . . . . . . . Ramming 89 | . 4 10 . 8 58 9 Kinetic 5156 | . . . . . 3964 1192 Thermal 1628 | 97 264 78 . 161 579 449 Explosive 1345 | . 325 . . . 255 765 Electromagnetic . | . . . . . . . Impact . | . . . . . . . Slashing . | . . . . . . . Piercing . | . . . . . . . Highest Corruption 1 | . . . . . 1 1 Average Corruption 1 | . . . . . 1 1 Corruption Purged . | . . . . . . . Corruption Blocked . | . . . . . . . Effects 12 | . . . . . . 12 Message Errors 1 | . . . . . . 1 Heat Flow Errors 4 | . . . . . . 4 Energy Discharges 3 | . . . . . . 3 Data Loss (major) 2 | . . . . . . 2 Misfires 2 | . . . . . . 2 Overload Shots . | . . . . . . . Overflow Damage 129 | . . . . . 107 22 Projectiles 129 | . . . . . 107 22 Explosions . | . . . . . . . Melee . | . . . . . . . Knockbacks 4 | . . . . . 4 . Impact . | . . . . . . . Kinetic 4 | . . . . . 4 . Secondary . | . . . . . . . Self-Inflicted Damage 41 | . . . . . . 41 Shots 1 | . . . . . . 1 Rammed 17 | . 2 3 . 1 10 1 Targets Rammed 19 | . 2 4 . 1 11 1 Kicked . | . . . . . . . Crushed 2 | . . 1 . . 1 . Highest Temperature 393 | 90 126 36 . 162 393 377 Average Temperature 74 | 42 50 19 . 68 80 88 Received Heat Transfer 2301 | . 51 . . 54 1494 702 Effects 5 | . . . . . 3 2 Shutdowns 1 | . . . . . . 1 Energy Bleed 1 | . . . . . . 1 Interference 3 | . . . . . 3 . Siege Activations . | . . . . . . . Robots Corrupted . | . . . . . . . Combat Hostiles . | . . . . . . . Parts Fried . | . . . . . . . Impact Corruptions . | . . . . . . . Robots Melted . | . . . . . . . Combat Hostiles . | . . . . . . . Parts Melted 6 | . 3 . . 1 1 1 Heat Transferred 3699 | 225 600 175 . 350 1535 814 Parts Sabotaged . | . . . . . . . Parts Stolen . | . . . . . . . Parts Stripped . | . . . . . . . Power Chain Reactions . | . . . . . . . Missiles Intercepted . | . . . . . . . Alert | -11 -10 -10 -10 -9 -8 -8 ------- Run | Scr Mat Min Exi Min Mat Sto Peak Influence 634 | 20 308 63 . 95 634 490 Initial 263 | . 13 48 . . . 263 Average 179 | 10 152 24 . 28 303 257 Maximum Alert Level 2 | . 1 . . . 2 2 Low Security (%) 60 | 100 66 100 . 100 29 38 Level 1 27 | . 33 . . . 39 48 Level 2 12 | . . . . . 31 12 Level 3 . | . . . . . . . Level 4 . | . . . . . . . Level 5 . | . . . . . . . High Security . | . . . . . . . Max Security . | . . . . . . . Squads Dispatched 11 | . 1 . . . 8 2 Investigation 4 | . . . . . 4 . Extermination . | . . . . . . . Reinforcement 5 | . 1 . . . 2 2 Assault . | . . . . . . . Garrison 2 | . . . . . 2 . Intercept . | . . . . . . . Searches Triggered . | . . . . . . . Construction Impeded 1 | . . . . . . 1 Haulers Reinforced . | . . . . . . . Active Scanning Responses . | . . . . . . . Cargo Convoy Interrupts . | . . . . . . . Stealth | -11 -10 -10 -10 -9 -8 -8 --------- Run | Scr Mat Min Exi Min Mat Sto Distress Signals 10 | . . 1 . . 7 2 Communications Jammed . | . . . . . . . Distress Signals . | . . . . . . . Times Spotted 102 | . 13 2 . 5 55 27 Peak Tracking Total 8 | . 5 1 . 3 8 6 Tactical Retreats 6 | . . . . 1 4 1 Traps | -11 -10 -10 -10 -9 -8 -8 ------- Run | Scr Mat Min Exi Min Mat Sto Traps Triggered 2 | . . . . . 1 1 Indirectly . | . . . . . . . Trap Hack Attempts . | . . . . . . . Triggered . | . . . . . . . Disarmed . | . . . . . . . Reprogrammed . | . . . . . . . Reused . | . . . . . . . Traps Extracted . | . . . . . . . Installed . | . . . . . . . Triggered . | . . . . . . . Machines | -11 -10 -10 -10 -9 -8 -8 ---------- Run | Scr Mat Min Exi Min Mat Sto Machines Disabled 4 | . . . . . 1 3 Max in Single Turn 1 | . . . . . 1 1 Machines Sabotaged . | . . . . . . . Garrisons Compromised . | . . . . . . . Overloaded Fab Kills . | . . . . . . . Hacking | -11 -10 -10 -10 -9 -8 -8 --------- Run | Scr Mat Min Exi Min Mat Sto Machines Accessed 17 | . 3 2 1 . 7 4 Terminals 12 | . 3 1 . . 5 3 Fabricators . | . . . . . . . Repair Stations 1 | . . . . . 1 . Recycling Units 2 | . . . . . 1 1 Scanalyzers . | . . . . . . . Garrison Access . | . . . . . . . Total Hacks 48 | . 10 6 1 . 24 7 Successful 24 | . 5 3 1 . 11 4 Failed 24 | . 5 3 . . 13 3 Catastrophic 3 | . . . . . 3 . Database Lockouts . | . . . . . . . Manual 38 | . 9 5 . . 19 5 Terminals 39 | . 10 5 . . 19 5 Fabricators . | . . . . . . . Repair Stations 3 | . . . . . 3 . Recycling Units 4 | . . . . . 2 2 Scanalyzers . | . . . . . . . Garrison Access . | . . . . . . . Terminal Hacks 12 | . 3 2 1 . 4 2 Record 2 | . . . 1 . 1 . Part Schematic 1 | . . 1 . . . . Robot Analysis 3 | . 2 . . . 1 . Prototype ID Bank 1 | . 1 . . . . . Open Door 3 | . . 1 . . . 2 Branch Access Points 1 | . . . . . 1 . Zone Layout 1 | . . . . . 1 . Fabricator Hacks . | . . . . . . . Repair Station Hacks 2 | . . . . . 2 . Scan Component 1 | . . . . . 1 . Repair 1 | . . . . . 1 . Recycling Unit Hacks 1 | . . . . . 1 . Retrieve Components 1 | . . . . . 1 . Scanalyzer . | . . . . . . . Garrison Access Hacks . | . . . . . . . Unauthorized Hacks 9 | . 2 1 . . 4 2 Terminals 6 | . 2 1 . . 3 . Track 4 | . 1 1 . . 2 . Botnet 2 | . 1 . . . 1 . Fabricators . | . . . . . . . Repair Stations . | . . . . . . . Recycling Units 3 | . . . . . 1 2 Reject 1 | . . . . . . 1 Mask 2 | . . . . . 1 1 Scanalyzers . | . . . . . . . Garrison Access . | . . . . . . . Data Cores Recovered . | . . . . . . . Used . | . . . . . . . Hacking Detections 12 | . 3 1 . . 6 2 Full Trace Events 6 | . . 1 . . 4 1 Feedback Events 1 | . . . . . 1 . Corruption 1 | . . . . . 1 . Feedback Blocked . | . . . . . . . Robot Schematics Acquired . | . . . . . . . Robots Built . | . . . . . . . Authchips . | . . . . . . . Time . | . . . . . . . Total Robot Build Rating . | . . . . . . . Part Schematics Acquired 1 | . . 1 . . . . Parts Built . | . . . . . . . Authchips . | . . . . . . . Time . | . . . . . . . Total Part Build Rating . | . . . . . . . Parts Repaired 1 | . . . . . 1 . Time 38 | . . . . . 38 . Parts Recycled . | . . . . . . . Recycled Matter . | . . . . . . . Retrieved Matter . | . . . . . . . Retrieved Components 9 | . . . . . 9 . Parts Scanalyzed . | . . . . . . . Part Schematics Acquired . | . . . . . . . Parts Damaged . | . . . . . . . Bothacking | -11 -10 -10 -10 -9 -8 -8 ------------ Run | Scr Mat Min Exi Min Mat Sto Used RIF Installer . | . . . . . . . Robots Hacked . | . . . . . . . Non-combat . | . . . . . . . Combat . | . . . . . . . Robot Hacks Applied . | . . . . . . . Relay Couplers Released . | . . . . . . . Fabnet Peak Effective % . | . . . . . . . Robots Rewired . | . . . . . . . Allies Hacked . | . . . . . . . Hacks Repelled . | . . . . . . . Allies | -11 -10 -10 -10 -9 -8 -8 -------- Run | Scr Mat Min Exi Min Mat Sto Total Allies 5 | . . 3 . . 2 . Largest Group 3 | . . 3 . . 1 . Highest-Rated Group 40 | . . 40 . . 16 . Highest-Rated Ally 16 | . . 16 . . 16 . Total Orders 2 | . . . . . . 2 EXPLORE 2 | . . . . . . 2 Ally Attacks 44 | . . 16 . . 28 . Total Damage 297 | . . 118 . . 179 . Kills 3 | . . 2 . . 1 . Allies Corrupted . | . . . . . . . Allies Melted . | . . . . . . . Intel | -11 -10 -10 -10 -9 -8 -8 ------- Run | Scr Mat Min Exi Min Mat Sto Robot Analysis Total 3 | . 2 . . . 1 . Derelict Logs Recovered 1 | . . 1 . . . . Drone Launches 48 | . . . . . 18 30 Drone Recoveries 32 | . . . . . 18 14 Exploration | -11 -10 -10 -10 -9 -8 -8 ------------- Run | Scr Mat Min Exi Min Mat Sto Turns Passed 6620 | 128 516 1171 965 674 1583 1583 Spaces Moved 2695 | 23 253 684 530 221 591 393 Core . | . . . . . . . Treads 2648 | . 243 684 530 221 591 379 Legs 33 | 23 10 . . . . . Wheels 14 | . . . . . . 14 Hover . | . . . . . . . Flight . | . . . . . . . Fastest Speed 120 | 120 120 160 160 240 160 160 Average Speed 191 | 120 158 160 180 240 167 297 Slowest Speed 400 | 120 160 160 240 240 243 400 Overloaded Moves . | . . . . . . . Propulsion Burnouts . | . . . . . . . Robots Hopped . | . . . . . . . Cave-ins Triggered . | . . . . . . . Exploration Rate (%) 55 | 3 53 94 86 45 53 53 Regions Visited 6 Branch Regions 4 Pre-discovered Areas 1 | . . 1 . . . . Known Exits Taken 1 | . . . . . 1 . Unknown Exits Taken 5 | 1 1 1 1 1 . . Scrap Searched 3 | . . 3 . . . . Spaces Dug 18 | . . . . . 18 . Terrain Destroyed 109 | . 20 . . . 39 50 Melee . | . . . . . . . Projectile 12 | . . . . . 11 1 AOE 97 | . 20 . . . 28 49 Terrain Rammed . | . . . . . . . Walls Destroyed . | . . . . . . . Machines Disabled . | . . . . . . . Actions | -11 -10 -10 -10 -9 -8 -8 --------- Run | Scr Mat Min Exi Min Mat Sto Total 3623 | 105 329 749 542 342 897 659 Wait 357 | 73 35 48 . 91 40 70 Move 2689 | 22 252 683 529 220 590 393 Hop . | . . . . . . . Pick Up 75 | . 7 1 8 6 15 38 Fast Attach 32 | 1 2 3 . . 10 16 Attach 20 | . . . . . 17 3 Detach 9 | . 1 1 . . 4 3 Swap 43 | . 5 . 2 3 18 15 Drop 70 | . 5 4 3 8 23 27 Fire 302 | 9 20 5 . 13 169 86 Melee . | . . . . . . . Ram . | . . . . . . . Kick . | . . . . . . . Crush 19 | . 2 4 . 1 11 1 Escape Stasis . | . . . . . . . Rewire . | . . . . . . . Trap . | . . . . . . . Miscellaneous 7 | . . . . . . 7 Route ------- -11/Scrapyard -10/Materials (discovered 3 exits: [*Mat] / *Min x2) -10/Mines (discovered 3 exits: [*Mat x2] / *Exi) -10/Exiles -9/Mines -8/Materials (discovered 3 exits: [*Fac] / *Sto x2) -8/Storage History --------- Turn | Location | Event 14 | -11/Scrapyard | Discovered new exit (range 3) 129 | -11/Scrapyard | Entered Materials 138 | -10/Materials | Discovered new exit (range 13) 225 | -10/Materials | Discovered new exit (range 16) 304 | -10/Materials | Build established: Mutant 337 | -10/Materials | Discovered new exit (range 6) 645 | -10/Materials | Entered Mines 920 | -10/Mines | Assisted by bots powering up and referring to "LRC-V3" 988 | -10/Mines | Discovered new exit (range 9) 1338 | -10/Mines | Found a hidden stash of uninstalled traps 1454 | -10/Mines | Found the Drone Emporium 1466 | -10/Mines | Found Prototype Device 1466 | -10/Mines | Identified Splice Drone Bay 1627 | -10/Mines | Discovered new exit (range 7) 1809 | -10/Mines | Deemed a non-threat by the Exiles lab entrance 1809 | -10/Mines | Discovered new exit (range 5) 1816 | -10/Mines | Entered Exiles 1816 | -10/Exiles | Found Exiles lab abandoned 2752 | -10/Exiles | Discovered new exit (range 12) 2781 | -10/Exiles | Entered Mines 2784 | -9/Mines | Met a Derelict bent on vengeance 3137 | -9/Mines | Discovered new exit (range 8) 3158 | -9/Mines | Joined a pair of Derelicts in attacking an 0b10 outpost 3455 | -9/Mines | Entered Materials 3455 | -8/Materials | Evolved 4 slots: Propulsion x1, Utility x3 3763 | -8/Materials | Build established: Scavenger-Mutant 3767 | -8/Materials | Lost 7 parts (1p3n2u1w) 4157 | -8/Materials | Lost 3 parts (2n1w) 4275 | -8/Materials | Discovered new exit (range 15) 4549 | -8/Materials | Garrison activated, responded to threat 4651 | -8/Materials | Repaired Hvy. Assault Cannon 4676 | -8/Materials | Core integrity fell below 50% 4718 | -8/Materials | Lost 3 parts (1p1n1u) 4910 | -8/Materials | Discovered new exit (range 20) 4923 | -8/Materials | Garrison activated, responded to threat 5000 | -8/Materials | Identified exit to Storage 5038 | -8/Materials | Entered Storage 5143 | -8/Storage | Lost 3 parts (2n1w) 5248 | -8/Storage | Core integrity fell below 20% 5805 | -8/Storage | Build established: Hauler-Mutant 6621 | -8/Storage | Destroyed by Y-45 Defender with Heavy Assault Rifle Last Messages --------------- 06477_ An explosion rips through the floor. 06477_ K-01 Serf destroyed. 06480_ R-06 Scavenger collects Wheel. 06489_ System corrupted: Energy discharge (-110). 06532_ Slammed into U-05 Engineer. 06555_ A-02 Transporter destroyed. 06558_ Acquired 50 matter. 06566_ Dropped Aluminum Leg. 06566_ Acquired Imp. Flight Unit. 06569_ K-01 Serf destroyed. 06570_ Extracted 100 matter. 06571_ R-06 Scavenger collects Imp. Flight Unit. 06574_ R-06 Scavenger collects Lgt. Treads. 06578_ K-01 Serf destroyed. 06590_ Acquired Wheel. 06594_ Acquired 15 matter. 06602_ W-25 Informer sends out distress signal. 06615_ W-25 Informer destroyed. 06615_ Switching to secondary target: Y-45 Defender. 06620_ System corrupted: Heat flow error (+165). Map ----- +----------------------------------------------------+ | | | | | | | | | | | | | | | | | ?????????????????????????????????????????????????? | | ?????????????????????????????????????????????????? | | ?????????????????????????????????????????????????? | | ?????????????????????????????????????????????????? | | ?????????????????????????????????????????????????? | | ?????????????????????????????????????????????????? | | ?????????????????????????????????????????????????? | | ????????????????????########???? ????????????????? | | ????????????????????# #???" ????????????????? | | ????????????????#???# #???"?????????????????? | | ??????????????## ???# #?? ?????????????????? | | ?????????????? ???# #? ??????????????????? | | ????####### # ##+#??????????????????? | | ????# ! #?""" """ # # ???????????????????? | | ????# #?""" """ # k/ ????????????????????? | | ##### #??"" """ # Y#?????????????????????? | | # """ #?? ?# !k #?????????????????????? | | # """ #??? ??# %@ #?????????????????????? | | # """ #??? ???# * #?????????????????????? | | # # """ #??##/##### #?????????????????????? | | # + """ #??# * Y #?????????????????????? | | # # #### [=###########?????????????????????? | | # # / *%[ !#???????????????????????????????? | | # # ####![=#???????????????????????????????? | | # # #??# #???????????????????????????????? | | # ########## #???????????????????????????????? | | # # ? # ##########??????????????????????? | | / %#= """" # # ##?????????????????????? | | # #% ""]!" # # """ #?????????????????????? | | # #!"""=!" # # """ #??????????????????????? | | # +%"!/""" # # !! """ #??????????????????????? | | # =# "!!"" # #!!! #??????????????????????? | | # # """ !*# # != """ #??????????????????????? | | # # = # #[ = R" #??????????????????????? | | # # =[# +=[! """ #??????????????????????? | | # ########## # #??????????????????????? | | # # # #######??????????????????????? | | # # ! T#####???????????????????????? | | # #???????????????????????? | | ########### """ #???????????????????????? | | #?????????#### """ #???????????????????????? | | #???????????# !""" #???????????????????????? | +----------------------------------------------------+ Best States ------------- Heat Dissipation 31 Energy Generation 14 Energy Capacity 275 Matter Stores 300 Matter Capacity 300 Sight Range 20 Terrain Scan Range 16 Terrain Scan Density 10 Armor Coverage 150 Power Shielding 66 Weapon Shielding 33 Evasion (%) 55 Targeting Accuracy 6 Recoil Reduction 3 Salvage Targeting 1 Item Schematics ----------------- Huge Storage Unit | -10/Mines | Hacked Robot Schematics ------------------ None Fabricated ------------ Nothing Alien Tech Used ----------------- None Achievements -------------- None Challenges ------------ None Game ------ Seed LaserPhaseMaul Manual? 0 Play Time 00:40:22 Cumulative 137.9 hours Start 2022.10.11 @ 19:45:22 End 2022.10.11 @ 20:25:23 Sessions 1 Manual Loads 0 Difficulty Rogue Special Mode None Game No. 164 Rogue 164 Adventurer 0 Explorer 0 Win Type - Total 1 Types 1/0/0/0/0/0/0/0/0 Lore% 73 Gallery% 73 Achievement% 57 Wizard Run 0 Options --------- ASCII 0 Keyboard 0 Movement Numpad Keybinds 0 Fullscreen 2 Font 18/SmallcapsGlow Map View 76x50 Tactical HUD 1 Map Filters NONE Filters NONE Steam 1 RUN: bb4946d6-aba6-4db7-a3c0-e1c47c03b805